[Event "4NCL 2023-2024"]
[Site "Daventry"]
[Date "2024.05.04"]
[Round "9.11"]
[White "Svane, Frederik"]
[Black "Carroll, Thomas"]
[Result "1-0"]
[ECO "B51"]
[WhiteElo "2637"]
[BlackElo "2091"]
[Annotator "TA"]
[PlyCount "121"]
[EventDate "2023.11.11"]
[EventType "team-tourn"]
[EventCountry "ENG"]
[SourceTitle "playchess.com"]
[Source "ChessBase"]
[SourceQuality "1"]
[TimeControl "40/6000+30:3000+30"]

{[%evp 20,121,69,66,74,67,68,72,66,41,64,68,103,31,62,50,55,36,50,52,50,50,58,50,57,50,54,55,58,48,71,60,60,59,68,62,64,34,47,23,18,11,68,72,127,89,122,119,118,116,123,69,63,54,116,41,142,70,53,48,164,139,131,58,70,84,111,98,152,164,160,171,166,140,182,179,193,203,175,133,277,267,266,275,273,270,237,195,178,191,220,220,350,339,445,438,803,752,1063,1012,12847,10090,5110,2964]} 1. e4 {[%emt 0:00:05]} c5 {[%emt 0:00:11]} 2. Nf3 {[%emt 0:00:07]} d6 {[%emt 0:00:05]} 3. Bb5+ {[%emt 0:00:53]} Nd7 {[%emt 0:00:15]} 4. c4 {[%emt 0:01:38]} a6 {[%emt 0:02:43]} 5. Ba4 {[%emt 0:00:47]} e5 {[%emt 0:04:47]} 6. Nc3 {[%emt 0:02:59] B51: Sicilian: Moscow Variation (3 Bb5+) without 3...Bd7.} Ngf6 {[%emt 0:03:36]} 7. d3 {[%emt 0:04:01]} g6 {[%emt 0:06:51]} 8. O-O {[%emt 0:04:45]} Bg7 {[%emt 0:01:23]} 9. a3 {[%emt 0:02:04]} O-O {[%emt 0:01:12]} 10. b4 {[%emt 0:10:10]} b6 {[%emt 0:08:54]} 11. Rb1 {[%emt 0:07:00]} Qc7 $146 {[%emt 0:03:45]} ({Predecessor:} 11... Rb8 12. Qc2 Qc7 13. Bxd7 Bxd7 14. Bg5 Be6 15. bxc5 bxc5 16. Bxf6 Bxf6 17. Qa4 Qd7 18. Rxb8 Rxb8 19. Qxa6 {1-0 Larkin,V (2424)-Foerster Yialamas,L (2075) Reykjavik Kvika op 2022 (7)}) 12. Bd2 {[%emt 0:04:52]} Bb7 {[%emt 0:04:12]} 13. h3 {[%emt 0:00:24]} Rfb8 {[%emt 0:06:19]} 14. Nh2 {[%emt 0:11:30]} cxb4 {[%emt 0:06:30]} 15. axb4 {[%emt 0:02:14]} Bc6 {[%emt 0:00:54]} 16. Bb3 {[%emt 0:12:17]} (16. Bxc6 $16 Qxc6 17. b5 axb5 18. Rxb5 (18. Nxb5 Nc5 $14)) 16... Qd8 {[%emt 0:06:45]} 17. Ng4 {[%emt 0:05:09]} Nxg4 {[%emt 0:01:47]} 18. Qxg4 {[%emt 0:02:05]} a5 {[%emt 0:05:11]} 19. Bc2 {[%emt 0:02:06]} axb4 {[%emt 0:09:59]} 20. Rxb4 {[%emt 0:00:19]} Nc5 {[%emt 0:02:08]} 21. Rfb1 {[%emt 0:00:17]} Ra3 {[%emt 0:04:52]} 22. Qd1 {[%emt 0:03:16]} Bf6 {[%emt 0:07:07]} 23. Qc1 {[%emt 0:01:42]} Ra6 {[%emt 0:00:38]} 24. Be3 {[%emt 0:00:08]} Qd7 {[%emt 0:03:47]} 25. Qd2 {[%emt 0:02:57]} Qb7 {[%emt 0:03:04]} 26. f4 {[%emt 0:08:05]} exf4 {[%emt 0:03:32]} 27. Bxf4 {[%emt 0:00:18]} Bd4+ {[%emt 0:05:13]} 28. Kh1 {[%emt 0:03:04]} Qe7 $1 {[%emt 0:00:27]} 29. Nb5 {[%emt 0:03:30]} Be5 $1 {[%emt 0:01:43]} 30. Bg5 {[%emt 0:00:09]} f6 {[%emt 0:01:16]} ({Black should play} 30... Bf6 $1 $11 31. Bf4 Be5) 31. Be3 $14 {[%emt 0:00:06]} Bg3 {[%emt 0:02:17]} (31... Ra2 $142) 32. Nd4 {[%emt 0:01:12]} Bd7 {[%emt 0:00:43]} 33. Ne2 {[%emt 0:01:27]} Bh4 {[%emt 0:00:12]} 34. Nc3 {[%emt 0:00:10]} Bc6 {[%emt 0:00:24]} 35. Rf1 {[%emt 0:04:58]} (35. Bg1 $16) 35... Re8 $14 {[%emt 0:01:55]} 36. Bd4 {[%emt 0:01:28]} Rf8 {[%emt 0:00:17]} (36... f5 $1 $14) 37. Rfb1 {[%emt 0:04:19]} (37. Nd5 $16 Bxd5 38. cxd5) 37... Rb8 {[%emt 0:01:08]} (37... f5 $14) 38. R4b2 {[%emt 0:01:46]} (38. Nd5 $16 Bxd5 39. cxd5) 38... Bg5 $14 {[%emt 0:01:33]} 39. Qf2 {[%emt 0:00:15]} Qe6 {[%emt 0:01:38]} (39... f5 $1 $14) 40. h4 {[%emt 0:03:59]} Bh6 {[%emt 0:00:20]} 41. Qxf6 {[%emt 0:51:16]} (41. Bxf6 $2 Rf8 42. d4 (42. Rf1 $2 Bg7 $19) 42... Rxf6 $19) (41. h5 $16) 41... Qxf6 $14 {[%emt 0:03:55]} 42. Bxf6 {[%emt 0:00:00]} Nd7 {[%emt 0:12:27]} 43. Bd4 {[%emt 0:00:00]} Bg7 {[%emt 0:01:10]} (43... Nc5 $142 44. Ne2 Bd7) 44. Bxg7 $16 {[%emt 0:00:00]} Kxg7 {[%emt 0:00:06]} 45. Kg1 {[%emt 0:00:00]} Rf8 {[%emt 0:02:33]} 46. Ne2 {[%emt 0:00:00]} Rfa8 {[%emt 0:05:28]} 47. Nd4 {[%emt 0:00:00]} Ba4 {[%emt 0:00:21]} 48. Bxa4 {[%emt 0:00:00]} Rxa4 {[%emt 0:00:07]} 49. Nb5 {[%emt 0:00:00]} Kf6 {[%emt 0:04:15]} (49... Ne5 $16 {is a better defense.}) 50. Rf1+ {[%emt 0:00:00]} Ke7 {[%emt 0:01:24]} 51. Rbf2 {[%emt 0:00:00]} Rf8 {[%emt 0:01:19]} 52. Rxf8 {[%emt 0:00:00]} Nxf8 {[%emt 0:00:05]} 53. Nxd6 {[%emt 0:00:00]} Nd7 {[%emt 0:01:08]} 54. Nb5 {[%emt 0:00:00]} Ra2 {[%emt 0:04:53]} 55. Nc3 {[%emt 0:00:00]} Ra3 {[%emt 0:02:46]} (55... Rc2 $142) 56. Nd5+ $18 {[%emt 0:00:00]} Kd6 {[%emt 0:01:43]} 57. d4 {[%emt 0:00:00]} Ra4 {[%emt 0:01:18]} (57... Ke6 $142 58. Rb1 h5 59. Nf4+ (59. Nxb6 Nf6 $18) 59... Ke7) 58. Rf7 $18 {[%emt 0:00:00]} Ra1+ {[%emt 0:00:28]} 59. Kh2 {[%emt 0:00:00]} Rd1 {[%emt 0:00:23]} 60. e5+ {[%emt 0:00:00]} (60. Rxh7 Rxd4 61. Kg3 Nc5 62. Nxb6 Rxe4 $18) 60... Kc6 {[%emt 0:00:33]} 61. e6 {[%emt 0:00:00]} 1-0

[Event "4NCL 2023-2024"]
[Site "Daventry"]
[Date "2024.05.04"]
[Round "9.12"]
[White "Li, Harry"]
[Black "Lupulescu, Constantin"]
[Result "1/2-1/2"]
[ECO "B45"]
[WhiteElo "2138"]
[BlackElo "2588"]
[Annotator "TA"]
[PlyCount "91"]
[EventDate "2023.11.11"]
[EventType "team-tourn"]
[EventCountry "ENG"]
[SourceTitle "playchess.com"]
[Source "ChessBase"]
[SourceQuality "1"]
[TimeControl "40/6000+30:3000+30"]

{[%evp 12,91,22,9,11,10,4,16,12,23,25,0,8,0,16,16,20,14,12,14,16,17,25,18,40,26,32,24,31,0,0,0,0,0,0,0,0,0,0,0,0,0,0,0,0,0,0,0,100,100,102,95,95,102,125,108,95,15,25,25,25,25,25,25,25,15,10,10,20,21,42,0,0,0,0,0,0,0,0,0,0,3]} 1. e4 {[%emt 0:00:03]} c5 {[%emt 0:00:15]} 2. Nf3 {[%emt 0:00:05]} e6 {[%emt 0:00:04]} 3. d4 {[%emt 0:00:06]} cxd4 {[%emt 0:00:04]} 4. Nxd4 {[%emt 0:00:04]} Nf6 {[%emt 0:00:05]} 5. Nc3 {[%emt 0:00:05]} Nc6 {[%emt 0:00:04]} 6. a3 {[%emt 0:00:33]} d6 {[%emt 0:04:29]} 7. Be3 {[%emt 0:01:50]} Be7 {[%emt 0:00:33]} 8. f3 {[%emt 0:03:47]} d5 {[%emt 0:09:22]} 9. exd5 {[%emt 0:00:25]} Nxd5 {[%emt 0:00:10]} 10. Nxd5 {[%emt 0:00:05]} Qxd5 {[%emt 0:00:52]} 11. Nxc6 {[%emt 0:00:05]} (11. Bd3 $5) 11... bxc6 {[%emt 0:06:15]} 12. c4 {[%emt 0:10:36]} Qxd1+ {[%emt 0:10:39]} 13. Kxd1 {[%emt 0:05:30]} a5 {[%emt 0:08:46]} 14. b3 {[%emt 0:01:35]} c5 {[%emt 0:08:28]} 15. a4 {[%emt 0:24:01]} Kd7 {[%emt 0:14:52]} 16. Kc2 {[%emt 0:04:23]} Kc6 {[%emt 0:09:55]} 17. Bd3 {[%emt 0:12:04]} f5 {[%emt 0:01:31] Dodges Be4+} 18. Rae1 {[%emt 0:01:03]} Bf6 {[%emt 0:04:15]} 19. Bf4 {[%emt 0:03:13]} Ra7 {[%emt 0:01:46]} 20. Be5 {[%emt 0:04:06]} Bxe5 {[%emt 0:02:34]} 21. Rxe5 {[%emt 0:01:11]} Rd8 {[%emt 0:03:09]} 22. f4 {[%emt 0:06:02]} Rd4 {[%emt 0:06:15]} 23. g3 {[%emt 0:00:04]} Rf7 {[%emt 0:01:12]} 24. Be2 {[%emt 0:05:40]} Rf8 {[%emt 0:01:58]} 25. Bf3+ {[%emt 0:01:50]} Kb6 $1 {[%emt 0:00:38]} 26. Rd1 {[%emt 0:02:29]} Rxd1 {[%emt 0:01:44]} 27. Kxd1 $11 {[%emt 0:01:27][%mdl 4096] Endgame. KRB-KRB} Bd7 {[%emt 0:01:01]} 28. Kd2 {[%emt 0:00:53]} Rf6 {[%emt 0:03:24]} 29. Ke3 {[%emt 0:01:35]} Bc6 {[%emt 0:02:57] [#]} (29... Rh6 $11 {keeps the balance.}) 30. b4 $1 $16 {[%emt 0:03:43]} Bxf3 {[%emt 0:02:25]} 31. bxc5+ {[%emt 0:02:24]} Kc6 {[%emt 0:00:04]} 32. Kxf3 {[%emt 0:00:01] KR-KR} Rf7 {[%emt 0:02:31]} 33. Ke3 {[%emt 0:01:39]} Rd7 {[%emt 0:00:20]} 34. Rxe6+ {[%emt 0:01:41]} (34. h3 $16) 34... Kxc5 $11 {[%emt 0:00:04]} 35. Re5+ {[%emt 0:00:04]} Kxc4 {[%emt 0:02:12]} 36. Rxa5 {[%emt 0:00:11]} g6 {[%emt 0:00:24]} 37. Re5 {[%emt 0:02:31]} Rd3+ {[%emt 0:00:22]} 38. Kf2 {[%emt 0:00:38] And now Re7 would win.} Ra3 {[%emt 0:00:09]} 39. a5 {[%emt 0:01:24]} Ra2+ {[%emt 0:00:41]} 40. Kg1 {[%emt 0:00:07]} Kd4 {[%emt 0:01:09]} 41. h4 {[%emt 0:55:58]} Ra1+ {[%emt 0:11:31] The position is equal.} 42. Kg2 {[%emt 0:00:00]} Ra2+ {[%emt 0:00:12]} 43. Kf1 {[%emt 0:00:00]} Ra3 {[%emt 0:03:37]} 44. Kf2 {[%emt 0:00:00][%cal Oh4h5]} h5 {[%emt 0:04:29]} 45. Kg2 {[%emt 0:00:00]} Ra1 {[%emt 0:00:57]} 46. Kf3 {[%emt 0:00:00] Weighted Error Value: White=0.08 (flawless) /Black=0.07 (flawless) .  Mistake:       	White=1     	Black=1      Inaccurate:     	White=2     	---        OK:         	White=12    	Black=14     Best:        	White=1     	Black=5      Strong:       	---       	Black=1      Brilliant:      	White=1     	---} 1/2-1/2

[Event "4NCL 2023-2024"]
[Site "Daventry"]
[Date "2024.05.04"]
[Round "9.13"]
[White "Erdos, Viktor"]
[Black "Chan, Sheng Liang Bernard"]
[Result "1-0"]
[ECO "D55"]
[WhiteElo "2546"]
[BlackElo "2096"]
[Annotator "TA"]
[PlyCount "93"]
[EventDate "2023.11.11"]
[EventType "team-tourn"]
[EventCountry "ENG"]
[SourceTitle "playchess.com"]
[Source "ChessBase"]
[SourceQuality "1"]
[TimeControl "40/6000+30:3000+30"]

{[%evp 18,93,7,11,25,33,25,17,29,18,26,21,31,7,21,22,40,44,56,37,72,58,51,26,22,25,20,37,24,0,0,0,0,0,0,0,101,91,138,139,216,129,160,173,163,177,158,177,160,155,176,0,120,123,121,121,118,111,124,118,126,118,124,122,135,135,134,140,156,151,467,442,427,364,386,386,482,472]} 1. d4 {[%emt 0:00:12]} Nf6 {[%emt 0:00:38]} 2. c4 {[%emt 0:00:15]} e6 {[%emt 0:00:17]} 3. Nf3 {[%emt 0:00:05]} d5 {[%emt 0:00:14]} 4. Bg5 {[%emt 0:00:13]} Be7 {[%emt 0:03:39]} 5. Nc3 {[%emt 0:02:19]} O-O {[%emt 0:00:40]} 6. e3 {[%emt 0:00:06]} b6 {[%emt 0:04:16]} 7. Be2 {[%emt 0:15:52]} Bb7 {[%emt 0:05:57]} 8. Bxf6 {[%emt 0:02:49]} Bxf6 {[%emt 0:01:04]} 9. cxd5 {[%emt 0:00:04]} exd5 {[%emt 0:02:46]} 10. b4 {[%emt 0:00:05]} c5 {[%emt 0:08:22]} 11. bxc5 {[%emt 0:01:29]} bxc5 {[%emt 0:00:03]} 12. Rb1 {[%emt 0:00:29]} Bc6 {[%emt 0:05:15] The position is equal.} 13. O-O {[%emt 0:01:27]} Nd7 {[%emt 0:01:49][%cal Bb8d7,Bd7b6,Bb6c8,Bc8e7,Be7g6][%mdl 32]} 14. Bb5 {[%emt 0:01:15]} Qc7 {[%emt 0:06:49]} 15. Qd3 {[%emt 0:06:03]} Rfd8 {[%emt 0:11:58]} 16. Rfc1 {[%emt 0:21:12]} c4 {[%emt 0:01:27]} 17. Qf5 {[%emt 0:00:57] Black must now prevent Bxc6.} Nb6 {[%emt 0:09:31]} 18. a4 {[%emt 0:01:00]} Nc8 {[%emt 0:03:02]} 19. Bxc6 {[%emt 0:14:32]} Qxc6 {[%emt 0:05:46]} 20. Rb5 {[%emt 0:00:51][%cal Rc3d5]} Ne7 {[%emt 0:00:57]} 21. Qf4 {[%emt 0:02:31]} Ng6 {[%emt 0:03:58]} 22. Qg4 {[%emt 0:02:43]} a6 {[%emt 0:07:40]} 23. Rb2 {[%emt 0:06:33]} (23. Rc5 $5 Qe6 $8 24. Qxe6 fxe6 25. Rc6 $14) 23... Rab8 {[%emt 0:05:36]} 24. Rcb1 {[%emt 0:04:17][%cal Bc1b1,Bb1b2,Bb2b6][%mdl 32]} Rxb2 {[%emt 0:00:22]} 25. Rxb2 {[%emt 0:00:04]} Be7 {[%emt 0:00:39]} 26. Qf5 {[%emt 0:08:23]} Bf6 {[%emt 0:03:21]} (26... Ba3 $11 27. Rb1 Ne7) 27. Qb1 $16 {[%emt 0:01:00]} Be7 {[%emt 0:17:54]} ({Black should play} 27... Qd6) 28. Rb6 {[%emt 0:02:45]} Qa8 {[%emt 0:00:00]} (28... Qc7 $16 29. h4 (29. Rxa6 Rb8 $16) 29... Nxh4) 29. a5 {[%emt 0:08:02]} (29. Rb7 $1 $18) 29... Bd6 {[%emt 0:00:00] [#]} 30. Rb7 {[%emt 0:00:57] Repels Bc7} Ne7 {[%emt 0:00:00] [#]} 31. Qb6 $1 {[%emt 0:04:22]} Rb8 {[%emt 0:00:00]} 32. Rxb8+ {[%emt 0:00:52]} Qxb8 {[%emt 0:00:00]} 33. Qxa6 {[%emt 0:00:19] Hoping for Qb5. White is more active.} Bb4 {[%emt 0:00:40]} 34. Nb5 {[%emt 0:00:43]} (34. Na4 $18) 34... c3 {[%emt 0:00:37]} (34... Qd8 $11) 35. Ne1 {[%emt 0:00:09] Nc2 is the strong threat.} Qd8 {[%emt 0:01:19]} 36. Qb6 {[%emt 0:01:27][%cal Rb6d8]} Bxa5 {[%emt 0:00:45]} 37. Qxd8+ {[%emt 0:00:05]} Bxd8 {[%emt 0:00:02][%mdl 4096] Endgame. KBN-KNN} 38. Kf1 {[%emt 0:00:26]} (38. Nxc3 $2 {too greedy.} Ba5 39. Nxd5 Nxd5 $19) 38... f5 {[%emt 0:00:53]} 39. Nxc3 {[%emt 0:00:24]} Kf7 {[%emt 0:00:07]} 40. Nd3 {[%emt 0:00:04]} Bc7 {[%emt 0:00:41]} 41. h3 {[%emt 0:50:20][%cal Bh2h3,Bh3g4][%mdl 32]} g5 {[%emt 0:01:39]} 42. g4 {[%emt 0:00:00]} fxg4 {[%emt 0:07:31]} 43. hxg4 {[%emt 0:00:00]} Kg6 $2 {[%emt 0:00:12] Loses the game.} (43... Ba5 $16) 44. Nb4 $18 {[%emt 0:00:00]} Bd6 {[%emt 0:05:06]} 45. Nbxd5 {[%emt 0:00:00]} Nc6 {[%emt 0:00:39]} 46. Ne4 {[%emt 0:00:00]} Bb8 {[%emt 0:00:14]} 47. Ndf6 {[%emt 0:00:00] Weighted Error Value: White=0.13 (very precise) /Black=0.27 (precise) .  Loses game:     	---       	Black=1      Missed win:     	White=1     	---        Mistake:       	White=1     	Black=4      Inaccurate:     	---       	Black=1      OK:         	White=19    	Black=8      Best:        	White=3     	Black=4      Strong:       	White=1     	---} 1-0

[Event "4NCL 2023-2024"]
[Site "Daventry"]
[Date "2024.05.04"]
[Round "9.14"]
[White "Walton, Alan J"]
[Black "Jaracz, Pawel"]
[Result "0-1"]
[ECO "D36"]
[WhiteElo "2035"]
[BlackElo "2470"]
[Annotator "TA"]
[PlyCount "62"]
[EventDate "2023.11.11"]
[EventType "team-tourn"]
[EventCountry "ENG"]
[SourceTitle "playchess.com"]
[Source "ChessBase"]
[SourceQuality "1"]
[TimeControl "40/6000+30:3000+30"]

{[%evp 21,62,18,22,5,8,8,31,5,20,-8,9,0,4,11,20,15,22,8,22,7,56,66,46,0,0,0,54,33,41,35,52,54,73,-372,-390,-409,-403,-366,-231,-234,-235,-325,-302]} 1. d4 {[%emt 0:00:06]} d5 {[%emt 0:02:51]} 2. c4 {[%emt 0:00:27]} e6 {[%emt 0:00:22]} 3. Nc3 {[%emt 0:01:21]} Nf6 {[%emt 0:00:16]} 4. cxd5 {[%emt 0:01:13]} exd5 {[%emt 0:00:28]} 5. Bg5 {[%emt 0:01:18]} Be7 {[%emt 0:00:44]} 6. Qc2 {[%emt 0:01:29]} Nbd7 {[%emt 0:01:38]} 7. e3 {[%emt 0:01:57]} c6 {[%emt 0:01:10]} 8. Bd3 {[%emt 0:00:27]} Nh5 {[%emt 0:00:41]} 9. Bxe7 {[%emt 0:04:55]} Qxe7 {[%emt 0:00:04]} 10. Nge2 {[%emt 0:05:25]} g6 {[%emt 0:06:09]} 11. O-O-O {[%emt 0:07:44]} Nb6 {[%emt 0:00:18]} 12. h3 {[%emt 0:01:02]} Bd7 {[%emt 0:01:26]} 13. Kb1 {[%emt 0:04:34]} Ng7 {[%emt 0:00:46]} 14. Rhe1 {[%emt 0:05:12] White is slightly better.} O-O {[%emt 0:07:16]} 15. Nc1 {[%emt 0:10:11]} Bf5 {[%emt 0:04:02]} 16. g4 {[%emt 0:05:14]} Bxd3 {[%emt 0:00:12]} 17. Nxd3 {[%emt 0:00:14][%cal Oh3h4]} Qh4 {[%emt 0:07:35]} 18. Rh1 {[%emt 0:02:43]} Rae8 {[%emt 0:00:29]} 19. Rdg1 {[%emt 0:00:35]} Ne6 {[%emt 0:08:49]} 20. Ne5 {[%emt 0:04:34]} c5 {[%emt 0:01:59]} (20... Qe7 $11 {was preferrable.}) 21. dxc5 $1 $14 {[%emt 0:05:02]} Nxc5 {[%emt 0:00:33]} 22. Nf3 {[%emt 0:02:36]} (22. f4 $14) 22... Qf6 $11 {[%emt 0:01:38]} 23. Nd4 {[%emt 0:00:08][%cal Oc3d5]} Ne6 {[%emt 0:03:37]} (23... Rc8 $11) 24. Rd1 $14 {[%emt 0:03:40]} Rc8 {[%emt 0:03:43]} 25. Qe2 {[%emt 0:02:46]} Rfd8 {[%emt 0:13:27]} 26. h4 {[%emt 0:03:24]} Rc4 {[%emt 0:03:06] [#]} 27. Nc2 $2 {[%emt 0:06:27][%mdl 8192] [#] This move loses the game for White.} (27. g5 $1 $16 {[%cal Rg5f6] and life is bright.} Qe7 28. Nxe6 Qxe6 29. Ka1) 27... Rxc3 $1 $19 {[%emt 0:01:04]} 28. bxc3 {[%emt 0:00:39]} Na4 $1 {[%emt 0:00:14]} (28... Qxc3 29. Qd2 Na4 30. Nd4 $15) 29. Rd3 {[%emt 0:02:45]} Nxc3+ {[%emt 0:00:48]} 30. Rxc3 {[%emt 0:00:04]} Qxc3 {[%emt 0:00:04]} 31. Rd1 {[%emt 0:01:05]} Rd6 {[%emt 0:01:00] Weighted Error Value: White=0.51/Black=0.22 (precise) .  Loses game:     	White=1     	---        Mistake:       	White=1     	Black=2      Inaccurate:     	White=3     	Black=1      OK:         	White=4     	Black=5      Best:        	White=1     	---        Strong:       	White=1     	Black=2} 0-1

[Event "4NCL 2023-2024"]
[Site "Daventry"]
[Date "2024.05.04"]
[Round "9.15"]
[White "Parligras, Mircea-Emilian"]
[Black "Burnett, Jim"]
[Result "1-0"]
[ECO "D30"]
[WhiteElo "2561"]
[BlackElo "2014"]
[Annotator "TA"]
[PlyCount "69"]
[EventDate "2023.11.11"]
[EventType "team-tourn"]
[EventCountry "ENG"]
[SourceTitle "playchess.com"]
[Source "ChessBase"]
[SourceQuality "1"]
[TimeControl "40/6000+30:3000+30"]

{[%evp 18,68,24,14,21,32,41,10,14,18,25,14,35,0,10,8,2,3,13,12,5,0,0,0,15,11,10,0,0,0,8,10,69,85,73,32,17,14,255,242,300,275,271,265,456,449,839,850,29997,1171,29998,29999,29999]} 1. d4 {[%emt 0:00:04]} d5 {[%emt 0:00:05]} 2. c4 {[%emt 0:00:16]} e6 {[%emt 0:00:04]} 3. Nf3 {[%emt 0:00:23]} c6 {[%emt 0:00:14]} 4. e3 {[%emt 0:00:30]} Nf6 {[%emt 0:00:07]} 5. Bd3 {[%emt 0:00:47]} Nbd7 {[%emt 0:00:31]} 6. b3 {[%emt 0:00:13]} b6 {[%emt 0:00:51]} 7. Bb2 {[%emt 0:00:55]} Bb7 {[%emt 0:00:15]} 8. O-O {[%emt 0:01:13]} Be7 {[%emt 0:00:31]} 9. Nbd2 {[%emt 0:02:10]} O-O {[%emt 0:01:40]} 10. Qe2 {[%emt 0:10:00]} Qc7 {[%emt 0:04:22]} 11. Ne5 {[%emt 0:06:59]} Rad8 {[%emt 0:04:57]} 12. f4 {[%emt 0:03:23]} c5 {[%emt 0:04:43] The position is equal.} 13. Rac1 {[%emt 0:01:55]} Qb8 {[%emt 0:04:28]} 14. Kh1 {[%emt 0:12:38]} Qa8 {[%emt 0:06:58]} 15. Rfd1 {[%emt 0:05:51]} Ne4 {[%emt 0:06:30]} 16. cxd5 {[%emt 0:01:39]} Bxd5 {[%emt 0:03:38]} 17. Nxe4 {[%emt 0:14:14]} (17. Bxe4 {simplifies} Bxe4 18. Nxe4 Qxe4 19. Ng4) 17... Bxe4 {[%emt 0:00:54]} 18. Bxe4 {[%emt 0:02:07]} Qxe4 {[%emt 0:00:08]} 19. Qf3 {[%emt 0:00:48]} (19. Ng4 {seems wilder.} Nf6 20. dxc5 Rxd1+ 21. Rxd1 Nxg4 22. Qxg4 g6 23. cxb6 Qc2 24. Bd4) 19... Qxf3 {[%emt 0:00:26]} 20. Nxf3 {[%emt 0:00:42]} Rc8 {[%emt 0:06:45]} 21. dxc5 {[%emt 0:06:38]} Nxc5 {[%emt 0:00:06]} 22. Ba3 {[%emt 0:00:24]} Rfd8 {[%emt 0:02:12]} 23. Kg1 {[%emt 0:07:50]} Kf8 {[%emt 0:03:31]} 24. Rd4 {[%emt 0:05:15]} Nb7 {[%emt 0:07:02]} ({Better is} 24... Ke8 $11) 25. Rxd8+ $14 {[%emt 0:03:37]} Rxd8 {[%emt 0:00:08]} 26. Bxe7+ {[%emt 0:02:27]} Kxe7 {[%emt 0:00:06][%mdl 4096] Endgame. KRN-KRN} 27. Ne5 {[%emt 0:00:23] [#] Hoping for Rc7+.} Kf6 $2 {[%emt 0:05:06] A mistake that costs the game.} (27... Ke8 $11) 28. Rc7 $1 $18 {[%emt 0:00:43][%csl Ge5,LRb7,LRf7][%cal Rc7f7]} Rd1+ {[%emt 0:00:25]} 29. Kf2 {[%emt 0:00:06][%csl Ge5][%cal Rc7f7]} Nd6 {[%emt 0:00:30]} 30. Ke2 {[%emt 0:02:18]} (30. Rxa7 g5 31. Rd7 gxf4 32. exf4 Kg7 $18) 30... Rg1 {[%emt 0:01:39] [#]} (30... Rd5 31. Rxa7 h5) 31. g4 {[%emt 0:00:41][%cal Bg2g4,Bg4g5][%mdl 32]} ({Don't play} 31. Rxa7 Rxg2+ 32. Kf3 Rd2 $18) 31... Rg2+ {[%emt 0:03:26]} (31... h5 $142 32. Rd7 (32. gxh5 Kf5 $18) (32. Rxa7 hxg4 33. Rd7 Rg2+ 34. Kf1 Rd2 $18) 32... hxg4 33. Rxd6 Kf5 34. Nxf7 Rg2+ 35. Kd3 Rxa2) 32. Kf3 {[%emt 0:00:12]} Rxa2 {[%emt 0:00:25]} 33. g5+ {[%emt 0:00:21]} Kf5 {[%emt 0:00:11]} 34. Rxf7+ {[%emt 0:00:08]} Nxf7 {[%emt 0:00:13]} 35. e4# {[%emt 0:00:05] Weighted Error Value: White=0.06 (flawless) /Black=0.68.  Loses game:     	---       	Black=1      Mistake:       	---       	Black=3      Inaccurate:     	White=3     	Black=1      OK:         	White=4     	Black=3      Best:        	White=3     	---} 1-0

[Event "4NCL 2023-2024"]
[Site "Daventry"]
[Date "2024.05.04"]
[Round "9.16"]
[White "Flint, Martina"]
[Black "Terbe, Julianna"]
[Result "0-1"]
[ECO "A03"]
[WhiteElo "1888"]
[BlackElo "2276"]
[Annotator "NA RC"]
[PlyCount "56"]
[EventDate "2023.11.11"]
[EventType "team-tourn"]
[EventCountry "ENG"]
[SourceTitle "playchess.com"]
[Source "ChessBase"]
[SourceQuality "1"]
[TimeControl "40/6000+30:3000+30"]

1. f4 {[%emt 0:00:04]} d5 {[%emt 0:00:29]} 2. Nf3 {[%emt 0:00:17]} Nf6 {[%emt 0:00:19]} 3. d3 {[%emt 0:00:31]} c5 {[%emt 0:00:40]} 4. g3 {[%emt 0:00:27]} g6 {[%emt 0:00:09]} 5. Bg2 {[%emt 0:00:31]} Bg7 {[%emt 0:00:08]} 6. O-O {[%emt 0:00:31]} Nc6 {[%emt 0:00:12]} 7. c3 {[%emt 0:00:41]} O-O {[%emt 0:00:10]} 8. Qc2 {[%emt 0:00:48]} d4 {[%emt 0:00:45]} 9. e4 {[%emt 0:01:23]} dxe3 {[%emt 0:00:18]} 10. Bxe3 {[%emt 0:00:09]} Bf5 {[%emt 0:00:21]} 11. Rd1 {[%emt 0:02:09]} c4 {[%emt 0:00:22]} 12. Bf1 {[%emt 0:01:07]} Ng4 {[%emt 0:03:50]} 13. Qd2 {[%emt 0:02:58]} cxd3 {[%emt 0:02:04]} 14. Na3 {[%emt 0:09:08]} Qd5 {[%emt 0:06:44]} 15. Ng5 {[%emt 0:05:36]} Rad8 {[%emt 0:06:29]} 16. Bg2 {[%emt 0:01:29]} Qd7 {[%emt 0:00:33]} 17. Ne4 {[%emt 0:02:36]} Qe6 {[%emt 0:03:03]} 18. h3 {[%emt 0:04:00]} Bxe4 {[%emt 0:03:23]} 19. hxg4 {[%emt 0:10:11]} Bxg2 {[%emt 0:00:07]} 20. Kxg2 {[%emt 0:00:12]} Qxg4 {[%emt 0:00:07]} 21. Rh1 {[%emt 0:04:07]} Bf6 {[%emt 0:03:44]} 22. Qf2 {[%emt 0:03:48]} h5 {[%emt 0:01:55]} 23. Nc4 {[%emt 0:01:35]} Kg7 {[%emt 0:02:18]} 24. Bxa7 {[%emt 0:04:53]} Nxa7 {[%emt 0:00:13]} 25. Qxa7 {[%emt 0:00:09]} Qe2+ {[%emt 0:00:31]} 26. Qf2 {[%emt 0:00:20]} Qe4+ {[%emt 0:00:07]} 27. Qf3 {[%emt 0:01:31]} Qxc4 {[%emt 0:00:10]} 28. a3 {[%emt 0:01:03]} Qb3 {[%emt 0:01:18]} 0-1